[Event "36th Indian-ch U13 Open 2023"]
[Site "Secunderabad"]
[Date "2023.12.06"]
[Round "4.6"]
[White "Shenvi, Mohit"]
[Black "Reyan"]
[Result "0-1"]
[ECO "B22"]
[WhiteElo "1940"]
[BlackElo "1842"]
[Annotator "RC"]
[PlyCount "130"]
[EventDate "2023.12.04"]
[EventType "swiss"]
[EventCountry "IND"]
[SourceTitle "playchess.com"]
[Source "ChessBase"]
[SourceQuality "1"]
[TimeControl "5400+30"]

1. e4 {[%emt 0:00:07]} c5 {[%emt 0:00:05]} 2. c3 {[%emt 0:00:05]} Nf6 {[%emt 0:00:04]} 3. e5 {[%emt 0:00:03]} Nd5 {[%emt 0:00:06]} 4. d4 {[%emt 0:00:04]} cxd4 {[%emt 0:00:08]} 5. cxd4 {[%emt 0:00:02]} d6 {[%emt 0:00:15]} 6. exd6 {[%emt 0:00:20]} Qxd6 {[%emt 0:00:06]} 7. Nc3 {[%emt 0:00:19]} Nc6 {[%emt 0:00:28]} 8. Nf3 {[%emt 0:00:15]} Bf5 {[%emt 0:04:08]} 9. Be3 {[%emt 0:03:10]} e6 {[%emt 0:01:00]} 10. Bc4 {[%emt 0:00:51]} Nb6 {[%emt 0:01:01]} 11. Bd3 {[%emt 0:01:09]} Bg6 {[%emt 0:03:03]} 12. Bxg6 {[%emt 0:00:33]} hxg6 {[%emt 0:00:02]} 13. h3 {[%emt 0:00:28]} Be7 {[%emt 0:08:43]} 14. O-O {[%emt 0:02:06]} Nd5 {[%emt 0:01:54]} 15. Qb3 {[%emt 0:00:38]} O-O {[%emt 0:30:08]} 16. Rac1 {[%emt 0:02:58]} Rab8 {[%emt 0:02:52]} 17. Rfe1 {[%emt 0:02:49]} Rfd8 {[%emt 0:00:59]} 18. a3 {[%emt 0:04:13]} Qd7 {[%emt 0:02:06]} 19. Ne4 {[%emt 0:02:52]} Rbc8 {[%emt 0:02:02]} 20. Qd3 {[%emt 0:08:49]} a6 {[%emt 0:04:39]} 21. Nc5 {[%emt 0:03:17]} Bxc5 {[%emt 0:02:28]} 22. Rxc5 {[%emt 0:00:28]} Qe8 {[%emt 0:08:21]} 23. Qe4 {[%emt 0:14:38]} Rc7 {[%emt 0:05:19]} 24. Rec1 {[%emt 0:01:31]} Rcd7 {[%emt 0:00:44]} 25. b4 {[%emt 0:04:19]} f6 {[%emt 0:01:51]} 26. Re1 {[%emt 0:03:44]} Qf7 {[%emt 0:01:32]} 27. Bc1 {[%emt 0:00:48]} Rd6 {[%emt 0:01:10]} 28. Bb2 {[%emt 0:01:16]} Nde7 {[%emt 0:03:53]} 29. Bc3 {[%emt 0:05:43]} Nf5 {[%emt 0:02:53]} 30. g4 {[%emt 0:01:05]} Nfe7 {[%emt 0:00:07]} 31. Bb2 {[%emt 0:00:54]} g5 {[%emt 0:01:28]} 32. Kg2 {[%emt 0:12:02]} Qg6 {[%emt 0:01:24]} 33. Kg3 {[%emt 0:02:41]} Kf7 {[%emt 0:03:05]} 34. Qe2 {[%emt 0:01:02]} Nd5 {[%emt 0:01:07]} 35. Qc4 {[%emt 0:02:02]} Rh8 {[%emt 0:01:25]} 36. b5 {[%emt 0:01:52]} Nce7 {[%emt 0:02:10]} 37. Bc1 {[%emt 0:00:50]} b6 {[%emt 0:01:09]} 38. Rxd5 {[%emt 0:00:56]} Rxd5 {[%emt 0:01:52]} 39. bxa6 {[%emt 0:00:35]} Qh7 {[%emt 0:00:39]} 40. Ng1 {[%emt 0:02:13]} Rc8 {[%emt 0:01:07]} 41. Qb3 {[%emt 0:00:07]} Qc2 {[%emt 0:00:48]} 42. Qxb6 {[%emt 0:17:36]} Rc6 {[%emt 0:00:18]} 43. Qb4 {[%emt 0:00:00]} Qc3+ {[%emt 0:01:44]} 44. Be3 {[%emt 0:00:00]} Qxb4 {[%emt 0:00:10]} 45. axb4 {[%emt 0:00:00]} Rxa6 {[%emt 0:00:01]} 46. Rc1 {[%emt 0:00:00]} Rb6 {[%emt 0:00:40]} 47. Rc7 {[%emt 0:00:00]} Rxb4 {[%emt 0:00:12]} 48. Nf3 {[%emt 0:00:00]} Ke8 {[%emt 0:00:21]} 49. Bc1 {[%emt 0:00:00]} Rd7 {[%emt 0:00:23]} 50. Rc3 {[%emt 0:00:00]} Nd5 {[%emt 0:00:11]} 51. Rc8+ {[%emt 0:00:00]} Rd8 {[%emt 0:00:39]} 52. Rc5 {[%emt 0:00:00]} Kd7 {[%emt 0:00:24]} 53. Ra5 {[%emt 0:00:00]} Rc8 {[%emt 0:00:14]} 54. Ba3 {[%emt 0:00:00]} Rb3 {[%emt 0:00:09]} 55. Bc5 {[%emt 0:00:00]} Rc7 {[%emt 0:00:23]} 56. Ra6 {[%emt 0:00:00]} Rc6 {[%emt 0:00:25]} 57. Ra7+ {[%emt 0:00:00]} Rc7 {[%emt 0:00:04]} 58. Ra6 {[%emt 0:00:00]} Nf4 {[%emt 0:00:43]} 59. h4 {[%emt 0:00:00]} Ne2+ {[%emt 0:00:36]} 60. Kg2 {[%emt 0:00:00]} Nf4+ {[%emt 0:00:10]} 61. Kg3 {[%emt 0:00:00]} Ne2+ {[%emt 0:00:05]} 62. Kg2 {[%emt 0:00:00]} gxh4 {[%emt 0:00:05]} 63. Rd6+ {[%emt 0:00:00]} Kc8 {[%emt 0:00:08]} 64. Nxh4 {[%emt 0:00:00]} Nf4+ {[%emt 0:00:16]} 65. Kg1 {[%emt 0:00:00]} g5 {[%emt 0:00:16]} 0-1

[Event "36th Indian-ch U13 Open 2023"]
[Site "Secunderabad"]
[Date "2023.12.06"]
[Round "4.7"]
[White "Mrinmoy Rajkhowa"]
[Black "Mukhund A"]
[Result "1-0"]
[ECO "B36"]
[WhiteElo "1840"]
[BlackElo "1533"]
[Annotator "NA RC"]
[PlyCount "115"]
[EventDate "2023.12.04"]
[EventType "swiss"]
[EventCountry "IND"]
[SourceTitle "playchess.com"]
[Source "ChessBase"]
[SourceQuality "1"]
[TimeControl "5400+30"]

1. e4 {[%emt 0:00:09]} c5 {[%emt 0:00:08]} 2. Nf3 {[%emt 0:00:03]} g6 {[%emt 0:00:08]} 3. d4 {[%emt 0:00:53]} cxd4 {[%emt 0:00:13]} 4. Nxd4 {[%emt 0:00:03]} Nc6 {[%emt 0:00:16]} 5. c4 {[%emt 0:00:18]} Nf6 {[%emt 0:00:14]} 6. Nc3 {[%emt 0:00:27]} Nxd4 {[%emt 0:00:12]} 7. Qxd4 {[%emt 0:00:06]} d6 {[%emt 0:00:05]} 8. Be3 {[%emt 0:13:05]} Bg7 {[%emt 0:00:23]} 9. f3 {[%emt 0:02:09]} O-O {[%emt 0:03:02]} 10. Qd2 {[%emt 0:00:12]} Be6 {[%emt 0:01:55]} 11. Rc1 {[%emt 0:01:47]} b6 {[%emt 0:08:23]} 12. Be2 {[%emt 0:02:56]} Rc8 {[%emt 0:00:33]} 13. b3 {[%emt 0:01:11]} Qd7 {[%emt 0:03:32]} 14. O-O {[%emt 0:01:30]} Qb7 {[%emt 0:03:15]} 15. Rfd1 {[%emt 0:08:00]} Rfd8 {[%emt 0:02:17]} 16. Bf1 {[%emt 0:04:06]} Nd7 {[%emt 0:07:00]} 17. Nd5 {[%emt 0:03:43]} Ne5 {[%emt 0:04:51]} 18. Kh1 {[%emt 0:10:26]} f5 {[%emt 0:11:21]} 19. Bg5 {[%emt 0:12:35]} Bf8 {[%emt 0:01:36]} 20. exf5 {[%emt 0:01:08]} Bxf5 {[%emt 0:03:10]} 21. Re1 {[%emt 0:03:25]} Re8 {[%emt 0:01:06]} 22. Qd4 {[%emt 0:05:15]} h6 {[%emt 0:06:26]} 23. Bd2 {[%emt 0:02:15]} Bg7 {[%emt 0:00:45]} 24. Qh4 {[%emt 0:02:17]} g5 {[%emt 0:03:10]} 25. Qg3 {[%emt 0:00:44]} Ng6 {[%emt 0:01:41]} 26. Ne3 {[%emt 0:05:25]} Bd7 {[%emt 0:04:13]} 27. Bd3 {[%emt 0:00:40]} Be5 {[%emt 0:01:10]} 28. Qf2 {[%emt 0:01:02]} Nf4 {[%emt 0:01:59]} 29. Bb1 {[%emt 0:01:49]} Rf8 {[%emt 0:01:24]} 30. Bc3 {[%emt 0:03:14]} Bxc3 {[%emt 0:01:33]} 31. Rxc3 {[%emt 0:00:03]} Bc6 {[%emt 0:00:17]} 32. Nf5 {[%emt 0:02:24]} Rxf5 {[%emt 0:06:46]} 33. Bxf5 {[%emt 0:00:02]} Rf8 {[%emt 0:00:09]} 34. Be4 {[%emt 0:01:31]} Bxe4 {[%emt 0:00:38]} 35. Rxe4 {[%emt 0:00:11]} Nh3 {[%emt 0:01:19]} 36. Qe1 {[%emt 0:03:03]} Nf2+ {[%emt 0:00:21]} 37. Qxf2 {[%emt 0:00:55]} Qxe4 {[%emt 0:00:02]} 38. Re3 {[%emt 0:00:27]} Qd4 {[%emt 0:01:44]} 39. Qe1 {[%emt 0:01:03]} e5 {[%emt 0:00:16]} 40. Re4 {[%emt 0:00:46]} Qb2 {[%emt 0:01:06]} 41. Re2 {[%emt 0:00:58]} Qd4 {[%emt 0:00:12]} 42. Re4 {[%emt 0:00:05]} Qb2 {[%emt 0:00:07]} 43. Re2 {[%emt 0:00:01]} Qd4 {[%emt 0:00:15]} 44. Rd2 {[%emt 0:00:24]} Qc5 {[%emt 0:01:06]} 45. Rd5 {[%emt 0:01:05]} Qc7 {[%emt 0:22:41]} 46. Qe4 {[%emt 0:00:37]} Kg7 {[%emt 0:00:00]} 47. g3 {[%emt 0:00:58]} Qe7 {[%emt 0:00:00]} 48. Kg2 {[%emt 0:00:24]} Qf6 {[%emt 0:00:00]} 49. b4 {[%emt 0:02:13]} h5 {[%emt 0:00:00]} 50. h3 {[%emt 0:01:03]} Rc8 {[%emt 0:00:00]} 51. Qd3 {[%emt 0:00:31]} Rd8 {[%emt 0:00:00]} 52. c5 {[%emt 0:01:02]} bxc5 {[%emt 0:00:00]} 53. bxc5 {[%emt 0:00:02]} e4 {[%emt 0:00:00]} 54. fxe4 {[%emt 0:02:53]} Rb8 {[%emt 0:00:00]} 55. Rf5 {[%emt 0:01:11]} Rb2+ {[%emt 0:00:00]} 56. Kg1 {[%emt 0:01:27]} Rb1+ {[%emt 0:00:46]} 57. Qxb1 {[%emt 0:00:07]} Qd4+ {[%emt 0:00:02]} 58. Rf2 {[%emt 0:00:09]} 1-0

[Event "36th Indian-ch U13 Open 2023"]
[Site "Secunderabad"]
[Date "2023.12.06"]
[Round "4.8"]
[White "Pavan Karthikeya Varma Gunturi"]
[Black "Adharsh K"]
[Result "0-1"]
[ECO "B31"]
[WhiteElo "1538"]
[BlackElo "1831"]
[Annotator "NA RC"]
[PlyCount "92"]
[EventDate "2023.12.04"]
[EventType "swiss"]
[EventCountry "IND"]
[SourceTitle "playchess.com"]
[Source "ChessBase"]
[SourceQuality "1"]
[TimeControl "5400+30"]

1. e4 {[%emt 0:00:02]} c5 {[%emt 0:00:48]} 2. Nc3 {[%emt 0:00:09]} Nc6 {[%emt 0:00:11]} 3. Bb5 {[%emt 0:00:12]} Nd4 {[%emt 0:06:57]} 4. Nf3 {[%emt 0:00:31]} g6 {[%emt 0:03:36]} 5. Ba4 {[%emt 0:00:28]} Bg7 {[%emt 0:00:19]} 6. O-O {[%emt 0:02:49]} Qa5 {[%emt 0:05:45]} 7. Bb3 {[%emt 0:04:40]} Nxb3 {[%emt 0:00:51]} 8. cxb3 {[%emt 0:00:16]} d6 {[%emt 0:00:26]} 9. Nd5 {[%emt 0:01:53]} Nf6 {[%emt 0:00:53]} 10. Nxf6+ {[%emt 0:00:56]} Bxf6 {[%emt 0:00:18]} 11. d3 {[%emt 0:00:44]} O-O {[%emt 0:00:36]} 12. Bd2 {[%emt 0:01:26]} Qc7 {[%emt 0:01:32]} 13. Bc3 {[%emt 0:02:18]} Bxc3 {[%emt 0:03:56]} 14. bxc3 {[%emt 0:00:13]} b5 {[%emt 0:00:10]} 15. Nd2 {[%emt 0:08:22]} Bb7 {[%emt 0:01:59]} 16. f4 {[%emt 0:02:26]} d5 {[%emt 0:03:44]} 17. e5 {[%emt 0:02:47]} Bc8 {[%emt 0:01:45]} 18. Re1 {[%emt 0:06:27]} (18. Qf3 $11 {is superior.}) 18... Bf5 {[%emt 0:06:17]} 19. Nf1 {[%emt 0:00:54]} c4 {[%emt 0:01:03]} 20. d4 {[%emt 0:03:01]} cxb3 {[%emt 0:01:36]} 21. Qxb3 {[%emt 0:00:11]} Rac8 {[%emt 0:03:35]} 22. Rac1 {[%emt 0:03:18]} Qc4 {[%emt 0:01:11]} 23. Qa3 {[%emt 0:02:56]} e6 {[%emt 0:02:42]} 24. Ne3 {[%emt 0:13:08]} Qd3 {[%emt 0:00:25]} 25. Qb2 {[%emt 0:05:18]} a6 {[%emt 0:03:19]} 26. g4 {[%emt 0:01:18]} Be4 {[%emt 0:00:41]} 27. Kf2 {[%emt 0:00:09]} b4 {[%emt 0:01:21]} 28. cxb4 {[%emt 0:03:14]} Rxc1 {[%emt 0:03:45]} 29. Rxc1 {[%emt 0:00:16]} f6 {[%emt 0:00:40]} 30. exf6 {[%emt 0:02:00]} Rxf6 {[%emt 0:00:55]} 31. Rc8+ {[%emt 0:00:11]} Kg7 $11 {[%emt 0:04:17] remains equal.} 32. Rc7+ {[%emt 0:00:10]} Kf8 {[%emt 0:00:53]} 33. Rc8+ {[%emt 0:00:16]} (33. Rxh7 {gets mated.} Rxf4+ 34. Ke1 Qxe3+ 35. Qe2 Qc1+ 36. Qd1 Rf1+ {[%mdl 64] Skewer, Deflection} 37. Kxf1 Qxd1+ 38. Kf2 Qf3+ 39. Ke1 Bd3 40. Rh8+ Kg7) 33... Ke7 $16 {[%emt 0:01:18]} 34. f5 {[%emt 0:16:59]} gxf5 {[%emt 0:09:32]} 35. g5 {[%emt 0:02:17]} Rf8 {[%emt 0:00:29]} 36. Rc7+ {[%emt 0:00:32]} Kd6 {[%emt 0:00:49]} 37. Qc1 {[%emt 0:01:51]} Qxd4 {[%emt 0:00:09]} 38. Rb7 {[%emt 0:01:07]} Rc8 {[%emt 0:01:04]} 39. Qxc8 {[%emt 0:01:28]} Qd2+ {[%emt 0:00:04]} 40. Kf1 {[%emt 0:00:24]} Bd3+ {[%emt 0:00:04]} 41. Kg1 {[%emt 0:00:15]} Qxe3+ {[%emt 0:00:06]} 42. Kg2 {[%emt 0:00:17]} Qe2+ {[%emt 0:00:08]} 43. Kg3 {[%emt 0:00:14]} f4+ {[%emt 0:00:03]} 44. Kxf4 {[%emt 0:01:00]} Qf2+ {[%emt 0:00:05]} 45. Kg4 {[%emt 0:00:08]} Bf5+ {[%emt 0:00:04]} 46. Kh5 {[%emt 0:00:18]} Qxh2# {[%emt 0:00:05]} 0-1

[Event "36th Indian-ch U13 Open 2023"]
[Site "Secunderabad"]
[Date "2023.12.06"]
[Round "4.9"]
[White "Siddhanth Poonja"]
[Black "Thakur Aarit"]
[Result "1-0"]
[ECO "D02"]
[WhiteElo "1806"]
[BlackElo "1479"]
[Annotator "NA RC"]
[PlyCount "103"]
[EventDate "2023.12.04"]
[EventType "swiss"]
[EventCountry "IND"]
[SourceTitle "playchess.com"]
[Source "ChessBase"]
[SourceQuality "1"]
[TimeControl "5400+30"]

1. d4 {[%emt 0:00:05]} d5 {[%emt 0:00:11]} 2. Nf3 {[%emt 0:00:07]} Nf6 {[%emt 0:00:12]} 3. Bf4 {[%emt 0:00:08]} e6 {[%emt 0:01:23]} 4. e3 {[%emt 0:00:12]} Bd6 {[%emt 0:00:23]} 5. Ne5 {[%emt 0:00:10]} Qe7 {[%emt 0:09:50]} 6. Nd2 {[%emt 0:02:47]} c5 {[%emt 0:03:14]} 7. c3 {[%emt 0:01:56]} a6 {[%emt 0:11:33]} 8. Bd3 {[%emt 0:04:32]} (8. Qf3 $14) 8... Nc6 {[%emt 0:02:54]} 9. Bg3 {[%emt 0:02:39]} Nd7 {[%emt 0:05:57]} 10. f4 {[%emt 0:01:08]} cxd4 {[%emt 0:02:03]} 11. exd4 {[%emt 0:01:22]} O-O {[%emt 0:08:21]} 12. O-O {[%emt 0:08:12]} f6 {[%emt 0:04:09]} ({Black should try} 12... f5 $14) 13. Bh4 {[%emt 0:11:24]} Qe8 {[%emt 0:04:36]} 14. Nxd7 {[%emt 0:06:47]} Bxd7 {[%emt 0:01:13]} 15. Qf3 {[%emt 0:00:38]} Qf7 {[%emt 0:02:37]} 16. Rae1 {[%emt 0:01:44]} Rac8 {[%emt 0:06:00]} 17. Bg3 {[%emt 0:03:43]} Ne7 {[%emt 0:03:53]} 18. Kh1 {[%emt 0:08:32]} Nc6 {[%emt 0:02:59]} 19. a3 {[%emt 0:03:50]} b5 {[%emt 0:00:39]} 20. Bb1 {[%emt 0:03:10]} Rfe8 {[%emt 0:05:50]} 21. Qd3 {[%emt 0:04:42]} Qh5 {[%emt 0:00:39]} 22. Rf3 $11 {[%emt 0:00:25]} (22. f5 $16 Bf8 23. fxe6 Rxe6 24. Rxe6 Bxe6 25. a4) 22... Ne7 {[%emt 0:06:50]} 23. Bf2 {[%emt 0:06:19]} e5 {[%emt 0:04:41]} 24. fxe5 {[%emt 0:00:29]} fxe5 {[%emt 0:00:17]} 25. dxe5 {[%emt 0:00:06]} Bc7 {[%emt 0:02:47]} 26. Nf1 {[%emt 0:03:22]} Ng6 {[%emt 0:02:27]} 27. Ng3 {[%emt 0:02:42]} Qg5 {[%emt 0:00:30]} 28. Ba2 {[%emt 0:06:08]} Rxe5 {[%emt 0:05:56]} 29. Rxe5 {[%emt 0:02:04]} Nxe5 {[%emt 0:00:22]} 30. Qxd5+ {[%emt 0:01:44]} Kh8 {[%emt 0:00:06]} 31. Re3 {[%emt 0:02:56]} Qf4 {[%emt 0:02:00]} 32. Bg1 {[%emt 0:04:11]} Bc6 {[%emt 0:00:29]} 33. Qd4 {[%emt 0:00:46]} Qf6 {[%emt 0:01:24]} 34. Re2 {[%emt 0:02:46]} Rd8 {[%emt 0:00:28]} 35. Qf2 {[%emt 0:00:27]} Qh6 {[%emt 0:00:33]} 36. Nf5 {[%emt 0:02:32]} Qg5 {[%emt 0:00:27]} 37. Nd4 {[%emt 0:01:13]} Bb7 {[%emt 0:00:34]} 38. Ne6 {[%emt 0:00:11]} Qe7 {[%emt 0:00:30]} 39. Nxd8 {[%emt 0:00:09]} Qxd8 {[%emt 0:00:06]} 40. Qg3 {[%emt 0:00:44]} Ng6 {[%emt 0:00:51]} 41. Qxc7 {[%emt 0:00:31]} Bxg2+ {[%emt 0:00:22]} 42. Kxg2 {[%emt 0:00:11]} Qg5+ {[%emt 0:00:30]} 43. Kh1 {[%emt 0:00:21]} Qf5 {[%emt 0:00:40]} 44. Re8+ {[%emt 0:00:08]} Nf8 {[%emt 0:00:05]} 45. Qc6 {[%emt 0:01:08]} h5 {[%emt 0:00:07]} 46. Qd5 {[%emt 0:00:04]} Qxd5+ {[%emt 0:00:14]} 47. Bxd5 {[%emt 0:00:02]} g5 {[%emt 0:00:11]} 48. Bd4+ {[%emt 0:00:09]} Kh7 {[%emt 0:00:05]} 49. Rxf8 {[%emt 0:00:05]} g4 {[%emt 0:00:12]} 50. Bf7 {[%emt 0:00:15]} Kh6 {[%emt 0:00:09]} 51. Bf6 {[%emt 0:00:05]} g3 {[%emt 0:00:16]} 52. Rh8# {[%emt 0:00:07]} 1-0

[Event "36th Indian-ch U13 Open 2023"]
[Site "Secunderabad"]
[Date "2023.12.06"]
[Round "4.10"]
[White "Ramanuj Mishra"]
[Black "Vihaan Dumir"]
[Result "1/2-1/2"]
[ECO "D12"]
[WhiteElo "1464"]
[BlackElo "1798"]
[Annotator "NA RC"]
[PlyCount "78"]
[EventDate "2023.12.04"]
[EventType "swiss"]
[EventCountry "IND"]
[SourceTitle "playchess.com"]
[Source "ChessBase"]
[SourceQuality "1"]
[TimeControl "5400+30"]

1. d4 {[%emt 0:00:03]} d5 {[%emt 0:00:07]} 2. c4 {[%emt 0:00:02]} c6 {[%emt 0:00:06]} 3. Nf3 {[%emt 0:00:06]} Nf6 {[%emt 0:00:09]} 4. e3 {[%emt 0:00:08]} Bf5 {[%emt 0:00:08]} 5. Nbd2 {[%emt 0:00:15]} e6 {[%emt 0:00:07]} 6. b3 {[%emt 0:00:20]} Bd6 {[%emt 0:00:06]} 7. Bb2 {[%emt 0:00:04]} Nbd7 {[%emt 0:00:10]} 8. Be2 {[%emt 0:00:11]} h5 {[%emt 0:02:33]} 9. h3 {[%emt 0:07:04]} Ne4 {[%emt 0:00:43]} 10. Nxe4 {[%emt 0:00:45]} dxe4 {[%emt 0:00:08]} 11. Nd2 {[%emt 0:03:25]} Qg5 {[%emt 0:00:44]} 12. Bf1 {[%emt 0:00:30]} Nf6 {[%emt 0:02:52]} 13. Qc2 {[%emt 0:02:20]} Bg3 {[%emt 0:08:48]} 14. Qc3 {[%emt 0:02:46]} Bc7 {[%emt 0:12:31]} 15. g3 {[%emt 0:05:44]} O-O {[%emt 0:05:53]} 16. O-O-O {[%emt 0:06:05]} b5 {[%emt 0:08:06]} 17. Ba3 {[%emt 0:04:59]} Rfc8 {[%emt 0:00:58]} 18. Be7 {[%emt 0:02:03]} Qg6 {[%emt 0:06:29]} 19. Bxf6 {[%emt 0:01:20]} Qxf6 {[%emt 0:02:14]} 20. Bg2 {[%emt 0:00:59]} Rab8 {[%emt 0:21:59]} 21. Nxe4 {[%emt 0:18:41]} Bxe4 {[%emt 0:00:15]} 22. Bxe4 {[%emt 0:00:04]} bxc4 {[%emt 0:01:16]} 23. f4 {[%emt 0:00:45]} cxb3 {[%emt 0:00:13]} 24. axb3 {[%emt 0:00:05]} c5 {[%emt 0:01:40]} 25. Bc2 {[%emt 0:03:17]} Bb6 {[%emt 0:02:56]} 26. Qd3 {[%emt 0:01:40]} cxd4 {[%emt 0:03:59]} 27. exd4 {[%emt 0:00:41]} g6 {[%emt 0:04:05]} 28. Rhe1 {[%emt 0:02:07]} Ba5 {[%emt 0:01:00]} 29. Re5 {[%emt 0:00:52]} Bc3 {[%emt 0:02:30]} 30. Qa6 {[%emt 0:01:57]} Qe7 {[%emt 0:04:39]} 31. Rb5 {[%emt 0:02:29]} Kg7 {[%emt 0:03:07]} 32. Rxb8 {[%emt 0:00:29]} Rxb8 {[%emt 0:00:01]} 33. Rd3 {[%emt 0:01:51]} Qc7 {[%emt 0:01:41]} 34. Qc4 {[%emt 0:01:50]} Bb2+ {[%emt 0:00:05]} 35. Kd1 {[%emt 0:02:27]} Qb7 {[%emt 0:01:40]} 36. d5 {[%emt 0:01:39]} exd5 {[%emt 0:00:07]} 37. Rxd5 {[%emt 0:01:21]} Qb6 {[%emt 0:02:54]} 38. Qf1 {[%emt 0:07:55]} Qe3 {[%emt 0:00:03]} 39. Rd2 {[%emt 0:01:10]} Bf6 {[%emt 0:01:48]} 1/2-1/2

[Event "36th Indian-ch U13 Open 2023"]
[Site "Secunderabad"]
[Date "2023.12.06"]
[Round "5.1"]
[White "Ram Vishal Parab"]
[Black "Sharnarthi Viresh"]
[Result "1/2-1/2"]
[ECO "B50"]
[WhiteElo "1686"]
[BlackElo "1850"]
[Annotator "NA COMBH"]
[PlyCount "101"]
[EventDate "2023.12.04"]
[EventType "swiss"]
[EventCountry "IND"]
[SourceTitle "playchess.com"]
[Source "ChessBase"]
[SourceQuality "1"]
[TimeControl "5400+30"]

1. e4 {[%emt 0:08:39]} c5 {[%emt 0:00:05]} 2. Nf3 {[%emt 0:00:04]} d6 {[%emt 0:00:04]} 3. c3 {[%emt 1:23:17]} Nf6 {[%emt 0:00:36]} 4. h3 {[%emt 0:00:00]} g6 {[%emt 0:00:05]} 5. Bd3 {[%emt 0:00:00]} Bg7 {[%emt 0:00:04]} 6. Bc2 {[%emt 0:00:00]} O-O {[%emt 0:00:06]} 7. O-O {[%emt 0:00:00]} Nc6 {[%emt 0:00:03]} 8. d4 {[%emt 0:00:00]} cxd4 {[%emt 0:00:05]} 9. cxd4 {[%emt 0:00:00]} e5 {[%emt 0:00:05]} 10. d5 {[%emt 0:00:00]} Nb4 {[%emt 0:00:04]} 11. Nc3 {[%emt 0:00:00]} a5 {[%emt 0:06:04]} 12. Bb1 {[%emt 0:00:00]} Bd7 {[%emt 0:01:37]} 13. a3 {[%emt 0:00:00]} Na6 {[%emt 0:00:18]} 14. Be3 {[%emt 0:00:00]} b5 {[%emt 0:00:42]} 15. Bd3 {[%emt 0:00:00]} a4 {[%emt 0:28:50]} 16. Nd2 {[%emt 0:00:00]} Qa5 {[%emt 0:03:16]} 17. Qe2 {[%emt 0:00:00]} Rab8 {[%emt 0:02:15]} 18. Rfc1 {[%emt 0:00:00]} Nc5 {[%emt 0:01:08]} 19. Na2 {[%emt 0:00:00]} Rfc8 {[%emt 0:01:54]} 20. Nb4 {[%emt 0:00:00]} Ne8 {[%emt 0:11:16]} 21. f3 {[%emt 0:00:00]} Nc7 {[%emt 0:14:38]} 22. Rc2 {[%emt 0:00:00]} N7a6 {[%emt 0:02:51]} 23. Nxa6 {[%emt 0:00:00]} Qxa6 {[%emt 0:00:02]} 24. Rac1 {[%emt 0:00:00]} Bf8 {[%emt 0:00:33]} 25. Qf1 {[%emt 0:00:00]} Qb7 {[%emt 0:03:14]} 26. Be2 {[%emt 0:00:00]} f5 {[%emt 0:01:01]} 27. Qe1 {[%emt 0:00:00]} f4 {[%emt 0:02:35]} 28. Bf2 {[%emt 0:00:00]} Be7 {[%emt 0:00:30]} 29. Kh1 {[%emt 0:00:00]} g5 {[%emt 0:00:33]} 30. Qf1 {[%emt 0:00:00]} Kf7 {[%emt 0:00:44]} 31. Rc3 {[%emt 0:00:00]} h5 {[%emt 0:01:19]} 32. b4 {[%emt 0:00:00]} axb3 {[%emt 0:02:46]} 33. Nxb3 {[%emt 0:00:00]} Nxb3 {[%emt 0:01:40]} 34. Rxb3 {[%emt 0:00:00]} g4 {[%emt 0:00:01]} 35. fxg4 {[%emt 0:00:00]} hxg4 {[%emt 0:00:36]} 36. hxg4 {[%emt 0:00:00]} Rh8+ {[%emt 0:01:55]} 37. Rh3 {[%emt 0:00:00]} Bg5 {[%emt 0:00:56]} 38. Be1 {[%emt 0:00:00]} Ke7 {[%emt 0:01:00]} 39. Bf3 {[%emt 0:00:00]} Qa7 {[%emt 0:01:58]} 40. Bb4 {[%emt 0:00:00]} Bh4 {[%emt 0:01:04]} 41. Qe2 {[%emt 0:00:24]} Bg3 {[%emt 0:01:14]} 42. Qd2 {[%emt 0:01:59]} Qb6 {[%emt 0:00:46]} 43. Qb2 {[%emt 0:03:00]} Kf7 {[%emt 0:05:14]} 44. Be1 {[%emt 0:00:40]} Rxh3+ {[%emt 0:00:45]} 45. gxh3 {[%emt 0:00:02]} Qe3 {[%emt 0:00:12]} 46. Qc3 {[%emt 0:00:25]} Qxc3 {[%emt 0:04:18]} 47. Bxc3 {[%emt 0:00:01]} Rc8 {[%emt 0:00:13]} 48. Bd2 {[%emt 0:00:21]} Rxc1+ {[%emt 0:01:06]} 49. Bxc1 {[%emt 0:00:01]} Be1 {[%emt 0:00:02]} 50. Kg2 {[%emt 0:00:35]} Kg6 {[%emt 0:00:28]} 51. Kf1 {[%emt 0:00:13]} 1/2-1/2

[Event "36th Indian-ch U13 Open 2023"]
[Site "Secunderabad"]
[Date "2023.12.06"]
[Round "5.2"]
[White "Reyan"]
[Black "Shreyash Singh"]
[Result "1/2-1/2"]
[ECO "B13"]
[WhiteElo "1842"]
[BlackElo "1637"]
[Annotator "NA COMBH"]
[PlyCount "75"]
[EventDate "2023.12.04"]
[EventType "swiss"]
[EventCountry "IND"]
[SourceTitle "playchess.com"]
[Source "ChessBase"]
[SourceQuality "1"]
[TimeControl "5400+30"]

1. e4 {[%emt 0:00:02]} c6 {[%emt 0:00:08]} 2. d4 {[%emt 0:00:05]} d5 {[%emt 0:00:03]} 3. exd5 {[%emt 0:00:07]} cxd5 {[%emt 0:00:08]} 4. Bd3 {[%emt 0:00:03]} Nc6 {[%emt 0:00:07]} 5. c3 {[%emt 0:00:06]} Qc7 {[%emt 0:00:02]} 6. Ne2 {[%emt 0:00:46]} Bg4 {[%emt 0:00:15]} 7. O-O {[%emt 0:01:22]} e6 {[%emt 0:00:09]} 8. Qe1 {[%emt 0:00:30]} Bxe2 {[%emt 0:00:22]} 9. Qxe2 {[%emt 0:00:07]} Bd6 {[%emt 0:00:05]} 10. f4 {[%emt 0:01:55]} Nf6 {[%emt 0:03:50]} 11. g3 {[%emt 0:00:16]} h5 {[%emt 0:03:52]} 12. h4 {[%emt 0:04:26]} O-O-O {[%emt 0:03:39]} 13. Nd2 {[%emt 0:03:21]} Kb8 {[%emt 0:02:15]} 14. Nf3 {[%emt 0:00:21]} Ne7 {[%emt 0:03:38]} 15. Rf2 {[%emt 0:02:14]} Nf5 {[%emt 0:03:27]} 16. Rg2 {[%emt 0:01:23]} Rhe8 {[%emt 1:16:30]} 17. Bd2 {[%emt 0:02:01]} Bf8 {[%emt 0:00:00]} 18. Re1 {[%emt 0:06:58]} Nd6 {[%emt 0:00:00]} 19. Ng5 {[%emt 0:00:10]} g6 {[%emt 0:00:00]} 20. Bc1 {[%emt 0:13:21]} Bg7 {[%emt 0:00:00]} 21. Qc2 {[%emt 0:02:28]} Nf5 {[%emt 0:02:30]} 22. Qe2 {[%emt 0:02:22]} Nd6 {[%emt 0:00:00]} 23. Qf3 {[%emt 0:02:30]} Ng4 {[%emt 0:00:00]} 24. Rge2 {[%emt 0:00:57]} Nf5 {[%emt 0:00:00]} 25. Kg2 {[%emt 0:02:26]} a6 {[%emt 0:00:00]} 26. Bd2 {[%emt 0:01:30]} Ka7 {[%emt 0:00:00]} 27. b4 {[%emt 0:03:13]} Nd6 {[%emt 0:00:00]} 28. a4 {[%emt 0:04:11]} Nc4 {[%emt 0:00:00]} 29. Bxc4 {[%emt 0:00:42]} dxc4 {[%emt 0:00:00]} 30. Rb1 {[%emt 0:05:22]} Rd6 {[%emt 0:00:00]} 31. Ne4 {[%emt 0:01:34]} Rd5 {[%emt 0:00:00]} 32. Nc5 {[%emt 0:03:08]} Bf8 {[%emt 0:00:00]} 33. Ne4 {[%emt 0:07:17]} Qc6 {[%emt 0:00:00]} 34. Ra1 {[%emt 0:01:54]} Kb8 {[%emt 0:00:00]} 35. a5 {[%emt 0:04:18]} Be7 {[%emt 0:00:00]} 36. Rae1 {[%emt 0:00:35]} Red8 {[%emt 0:00:00]} 37. Bc1 {[%emt 0:00:38]} Nh6 {[%emt 0:00:00]} 38. Kh2 {[%emt 0:07:04]} 1/2-1/2